bitfinex/quotes_SOLUSD_20250602
["timestamp","ask_amount","ask_price","bid_price","bid_amount"]
[1748827559032,58.00964886,158.76,158.73,20.25772494]
[1748827560260,58.00964886,158.76,158.73,6.3000063]
[1748827560553,71.9673675,158.76,158.73,6.3000063]
[1748827561446,71.9673675,158.76,158.7,41.75248671]
[1748827561636,32.6073675,158.74,158.67,15.75515284]
[1748827561828,18.64964886,158.72,158.69,13.95771864]
[1748827562032,18.64964886,158.72,158.7,13.95771864]
[1748827562331,18.64964886,158.72,158.7,20.25868481]
[1748827562535,18.64964886,158.72,158.7,6.30096617]
[1748827564943,18.64964886,158.72,158.7,20.25868481]
[1748827566438,18.64964886,158.72,158.7,6.30096617]
[1748827566936,18.64964886,158.72,158.69,6.30146033]
[1748827567125,18.64964886,158.72,158.69,20.25917897]
[1748827567325,18.64964886,158.72,158.7,13.95771864]
[1748827568525,58.08964886,158.75,158.71,20.25851884]
[1748827568726,58.08964886,158.75,158.72,13.95771864]
[1748827570549,206.96964886,158.76,158.75,6.29921259]
[1748827572652,206.96964886,158.76,158.72,6.30040322]
[1748827572834,206.96964886,158.76,158.73,13.95771864]
[1748827573347,18.64964886,158.75,158.73,13.95771864]
[1748827574938,18.64964886,158.75,158.74,6.29960942]
[1748827575856,18.64964886,158.75,158.71,41.7520005]
[1748827576054,18.64964886,158.75,158.71,55.70971914]
[1748827576461,18.64964886,158.75,158.72,13.95771864]
[1748827577147,18.64964886,158.75,158.72,20.25812186]
[1748827579443,18.64964886,158.75,158.72,36.00912992]
[1748827581177,18.64964886,158.75,158.73,13.95771864]
[1748827581477,58.00964886,158.75,158.74,6.29960942]
[1748827582865,18.64964886,158.75,158.74,6.29960942]
[1748827583066,58.00964886,158.75,158.74,6.29960942]
[1748827583571,58.00964886,158.75,158.73,20.25760375]
[1748827583780,71.9673675,158.75,158.7,20.25891586]
[1748827583951,18.64964886,158.73,158.7,6.30119722]
[1748827584150,39.34,158.72,158.7,6.30119722]
[1748827586381,32.6073675,158.71,158.67,6.3023886]
[1748827586672,13.95771864,158.7,158.66,6.30273156]
[1748827586870,18.64964886,158.68,158.66,6.30273156]
[1748827587074,18.64964886,158.68,158.66,20.2604502]
[1748827588390,39.34,158.69,158.67,13.95771864]
[1748827588559,10.46,158.71,158.68,13.95771864]
[1748827588748,10.46,158.71,158.66,6.30273156]
[1748827588749,10.46,158.71,158.7,13.95771864]
[1748827589150,39.32,158.74,158.7,13.95771864]
[1748827589377,39.32,158.74,158.73,13.95771864]
[1748827589580,10.46,158.76,158.73,13.95771864]
[1748827589769,10.46,158.76,158.75,13.95771864]
[1748827590079,10.46,158.81,158.76,6.29881582]
[1748827590278,39.34,158.8,158.77,13.95771864]
[1748827591167,57.96964886,158.8,158.78,6.29802242]
[1748827591351,57.98964886,158.8,158.78,6.29802242]
[1748827591963,57.96964886,158.8,158.78,6.29802242]
[1748827593382,57.94964886,158.8,158.78,6.29802242]
[1748827594884,57.94964886,158.8,158.78,20.25574106]
[1748827595179,57.92964886,158.8,158.78,20.25574106]
[1748827597797,57.92964886,158.8,158.78,13.95771864]
[1748827598766,57.92964886,158.8,158.79,6.29762579]
[1748827601180,57.92964886,158.8,158.72,13.95771864]
[1748827601181,57.92964886,158.8,158.77,13.95771864]
[1748827603469,10.46,158.81,158.78,20.25574106]
[1748827603670,10.46,158.81,158.8,13.95771864]
[1748827605398,148.9,158.83,158.8,13.95771864]
[1748827605572,148.9,158.83,158.82,13.95771864]
[1748827606795,148.9,158.83,158.81,13.95771864]
[1748827609186,148.9,158.83,158.82,6.29643621]
[1748827609801,148.9,158.83,158.81,20.2544311]
[1748827615681,53.07771864,158.82,158.8,6.29712998]
[1748827615890,53.07771864,158.82,158.78,26.0]
[1748827615891,18.64964886,158.81,158.77,13.95771864]
[1748827616080,39.12,158.82,158.78,13.95771864]
[1748827616391,39.12,158.82,158.79,13.95771864]
[1748827617000,18.64964886,158.81,158.77,20.25605555]
[1748827617305,53.07771864,158.82,158.78,13.95771864]
[1748827617306,39.12,158.82,158.78,13.95771864]
[1748827617504,39.12,158.82,158.79,13.95771864]
[1748827618306,18.64964886,158.82,158.79,13.95771864]
[1748827618502,39.1,158.81,158.8,6.29722921]
[1748827620408,18.64964886,158.82,158.8,6.29722921]
[1748827620706,39.08,158.81,158.79,20.25519218]
[1748827621004,39.08,158.81,158.77,6.29841909]
[1748827621324,34.1651675,158.8,158.76,6.29871615]
[1748827621485,169.10744886,158.8,158.77,13.95771864]
[1748827622113,169.10744886,158.8,158.76,6.29871615]
[1748827622114,169.10744886,158.8,158.76,20.25643479]
[1748827622291,183.0651675,158.8,158.76,6.29871615]
[1748827622493,32.6073675,158.78,158.73,13.95771864]
[1748827622805,32.6073675,158.76,158.72,6.30034063]
[1748827623308,18.64964886,158.76,158.72,20.25805927]
[1748827624799,18.64964886,158.76,158.73,13.95771864]
[1748827625192,18.64964886,158.76,158.74,13.95771864]
[1748827626906,159.22,158.77,158.75,20.25693123]
[1748827628707,198.34,158.77,158.75,20.25693123]
[1748827631817,198.34,158.77,158.75,6.29921259]
[1748827633210,198.34,158.77,158.75,20.25693123]
[1748827634194,198.34,158.77,158.75,6.29921259]
[1748827634616,18.64964886,158.76,158.72,13.95771864]
[1748827634801,18.64964886,158.76,158.73,13.95771864]
[1748827637916,18.64964886,158.76,158.74,6.29960942]
[1748827638111,18.64964886,158.76,158.73,20.25761028]
[1748827638826,148.9,158.77,158.75,13.95771864]
[1748827639725,148.9,158.77,158.76,6.29881582]
[1748827640322,148.9,158.77,158.75,6.29917515]
[1748827641633,148.9,158.77,158.75,20.25689379]
[1748827642117,148.9,158.77,158.75,6.29917515]
[1748827642315,148.9,158.77,158.74,6.29947759]
[1748827642518,13.95771864,158.75,158.7,41.75217344]
[1748827642721,18.64964886,158.74,158.71,6.3008002]
[1748827642909,13.95771864,158.73,158.68,6.30199142]
[1748827643109,18.64964886,158.71,158.65,6.3031831]
[1748827643323,32.6073675,158.71,158.65,6.3031831]
[1748827643529,32.6073675,158.71,158.67,6.3023886]
[1748827644833,18.64964886,158.71,158.67,6.3023886]
[1748827645033,32.6073675,158.71,158.67,6.3023886]
[1748827646211,13.95771864,158.7,158.66,13.95771864]
[1748827646631,32.6073675,158.71,158.67,13.95771864]
[1748827648732,32.6073675,158.71,158.68,6.30199142]
[1748827650033,18.64964886,158.71,158.68,6.30199142]
[1748827650226,32.6073675,158.71,158.68,6.30199142]
[1748827653928,32.6073675,158.71,158.67,6.3022792]
[1748827654236,13.95771864,158.7,158.66,13.95771864]
[1748827654544,13.95771864,158.7,158.64,6.30358043]
[1748827654730,13.95771864,158.7,158.66,13.95771864]
[1748827656234,18.64964886,158.71,158.65,13.95771864]
[1748827656528,13.95771864,158.7,158.66,13.95771864]
[1748827657015,13.95771864,158.69,158.65,13.95771864]
[1748827657442,18.64964886,158.68,158.65,13.95771864]
[1748827658548,18.64964886,158.68,158.66,6.30278583]
[1748827658721,57.70964886,158.68,158.64,20.26090252]
[1748827658921,73.2732675,158.68,158.64,6.30318388]
[1748827659130,18.64964886,158.66,158.64,6.30318388]
[1748827660457,18.64964886,158.64,158.59,6.30556781]
[1748827660645,220.5273675,158.64,158.59,6.30556781]
[1748827660959,220.5273675,158.64,158.6,13.95771864]
[1748827661655,206.56964886,158.64,158.6,13.95771864]
[1748827662235,220.5273675,158.64,158.6,13.95771864]
[1748827662828,220.5273675,158.64,158.61,6.30477271]
[1748827663031,206.56964886,158.64,158.61,6.30477271]
[1748827663926,220.5273675,158.64,158.61,6.30477271]
[1748827664350,220.5273675,158.64,158.6,20.26281988]
[1748827664562,24.25771864,158.63,158.6,6.30510124]
[1748827665546,18.64964886,158.61,158.57,13.95771864]
[1748827665745,39.02,158.6,158.57,13.95771864]
[1748827665940,18.64964886,158.59,158.57,20.26408176]
[1748827666140,18.64964886,158.59,158.57,6.30636312]
[1748827669543,32.6073675,158.59,158.56,6.30676084]
[1748827669941,18.64964886,158.59,158.56,6.30676084]
[1748827670147,32.6073675,158.59,158.56,6.30676084]
[1748827671154,18.64964886,158.59,158.56,6.30676084]
[1748827674954,32.6073675,158.59,158.56,6.30676084]
[1748827675348,18.64964886,158.57,158.54,6.30755645]
[1748827675546,67.84964886,158.57,158.54,6.30755645]
[1748827675859,81.8073675,158.57,158.54,6.30755645]
[1748827676351,67.84964886,158.57,158.54,6.30755645]
[1748827679952,67.84964886,158.57,158.53,13.95771864]
[1748827680134,67.84964886,158.57,158.54,13.95771864]
[1748827680935,1.5586,158.62,158.56,13.95771864]
[1748827681143,10.22,158.61,158.56,13.95771864]
[1748827681450,10.22,158.61,158.6,13.95771864]
[1748827681637,10.22,158.61,158.53,26.0]
[1748827681839,49.18,158.61,158.6,20.26288887]
[1748827682342,67.82964886,158.61,158.6,6.30517023]
[1748827682952,67.84964886,158.61,158.6,6.30517023]
[1748827683765,67.84964886,158.61,158.59,6.30556781]
[1748827684362,18.64964886,158.61,158.59,6.30556781]
[1748827684562,38.96,158.6,158.59,6.30556781]
[1748827685368,18.64964886,158.59,158.54,22.07644758]
[1748827685664,18.64964886,158.59,158.55,13.95771864]
[1748827685837,18.64964886,158.59,158.56,13.95771864]
[1748827686040,18.64964886,158.59,158.55,13.95771864]
[1748827686250,32.6073675,158.59,158.54,22.07644758]
[1748827686466,32.6073675,158.59,158.54,36.03416622]
[1748827687176,13.95771864,158.57,158.54,6.30755645]
[1748827687347,57.68964886,158.57,158.54,20.26527509]
[1748827688250,57.68964886,158.57,158.54,6.30755645]
[1748827688449,57.68964886,158.57,158.54,20.26527509]
[1748827688765,206.58964886,158.57,158.54,6.30755645]
[1748827688970,18.64964886,158.55,158.54,6.30755645]
[1748827692745,18.64964886,158.55,158.51,15.77100054]
[1748827692949,18.64964886,158.55,158.53,13.95771864]
[1748827693860,18.64964886,158.55,158.54,13.95771864]
[1748827694966,18.64964886,158.55,158.54,20.26527509]
[1748827695676,18.64964886,158.55,158.54,6.30755645]
[1748827697477,148.9,158.56,158.54,20.26527509]
[1748827701678,162.85771864,158.56,158.51,15.77100054]
[1748827701888,32.6073675,158.55,158.5,6.30914826]
[1748827702183,187.96,158.54,158.5,20.2668669]
[1748827702759,187.96,158.54,158.51,13.95771864]
[1748827703074,18.64964886,158.53,158.5,6.30914826]
[1748827703271,18.64964886,158.53,158.5,20.2668669]
[1748827704577,148.9,158.54,158.52,13.95771864]
[1748827704753,187.94,158.54,158.53,13.95771864]
[1748827704950,148.9,158.54,158.53,13.95771864]
[1748827705178,39.04,158.55,158.53,13.95771864]
[1748827705391,39.04,158.56,158.54,13.95771864]
[1748827705683,183.1646675,158.59,158.55,13.95771864]
[1748827705975,67.90964886,158.58,158.55,20.26487726]
[1748827706275,67.90964886,158.58,158.55,6.30715862]
[1748827706473,28.88964886,158.58,158.55,6.30715862]
[1748827706777,39.02,158.57,158.55,6.30715862]
[1748827706983,39.02,158.56,158.55,6.30715862]
[1748827712483,38.96,158.56,158.55,6.30715862]
[1748827715265,38.96,158.56,158.54,6.30747112]
[1748827715792,38.96,158.56,158.53,13.95771864]
[1748827716569,38.96,158.56,158.54,6.30755645]
[1748827716986,38.96,158.56,158.55,13.95771864]
[1748827717197,38.94,158.57,158.55,13.95771864]
[1748827717965,28.88964886,158.58,158.55,13.95771864]
[1748827718175,67.80964886,158.58,158.55,13.95771864]
[1748827719189,67.80964886,158.58,158.56,6.30676084]
[1748827721075,67.80964886,158.58,158.55,20.26473768]
[1748827721376,38.9,158.57,158.55,20.26473768]
[1748827721897,38.9,158.57,158.55,6.30701904]
[1748827723978,38.88,158.57,158.55,6.30701904]
[1748827725785,38.88,158.57,158.54,20.26515147]
[1748827725985,18.64964886,158.56,158.53,20.26560465]
[1748827727295,18.64964886,158.56,158.51,6.30875023]
[1748827727505,18.64964886,158.56,158.52,13.95771864]
[1748827727809,18.64964886,158.54,158.51,6.30875023]
[1748827728007,38.86,158.53,158.51,6.30875023]
[1748827730627,38.86,158.53,158.51,20.26646887]
[1748827732201,38.86,158.53,158.51,6.30875023]
[1748827733122,38.86,158.53,158.51,20.26646887]
[1748827733525,10.24,158.54,158.51,20.26646887]
[1748827733819,148.9,158.56,158.53,13.95771864]
[1748827735288,148.9,158.56,158.51,22.08062582]
[1748827735485,18.64964886,158.55,158.51,20.26646887]
[1748827735716,38.82,158.54,158.51,20.26646887]
[1748827736711,18.64964886,158.55,158.51,20.26646887]
[1748827736902,38.82,158.54,158.51,20.26646887]
[1748827745018,38.82,158.54,158.52,13.95771864]
[1748827745318,148.9,158.56,158.51,6.30875023]
[1748827745319,187.66,158.56,158.53,13.95771864]
[1748827746700,187.66,158.56,158.54,6.30755645]
[1748827747009,148.9,158.56,158.54,6.30755645]
[1748827749327,148.9,158.56,158.54,20.26527509]
[1748827749920,148.9,158.56,158.55,13.95771864]
[1748827750223,33.81253943,158.62,158.55,13.95771864]
[1748827750224,18.64964886,158.6,158.55,13.95771864]
[1748827750428,18.64964886,158.6,158.57,13.95771864]
[1748827750734,10.12,158.67,158.6,26.0]
[1748827751435,10.12,158.67,158.61,22.06670449]
[1748827751596,49.5,158.67,158.61,22.06670449]
[1748827751799,49.5,158.67,158.61,20.26249135]
[1748827752110,13.95771864,158.65,158.61,6.30477271]
[1748827752620,32.6073675,158.66,158.62,13.95771864]
[1748827752805,18.64964886,158.66,158.62,13.95771864]
[1748827753531,18.64964886,158.66,158.63,6.3039778]
[1748827753915,18.64964886,158.66,158.63,20.26169644]
[1748827755719,148.9,158.65,158.63,20.26169644]
[1748827756726,188.3,158.65,158.63,20.26169644]
[1748827761737,188.3,158.65,158.61,6.30477271]
[1748827762036,188.3,158.65,158.62,13.95771864]
[1748827763135,18.64964886,158.64,158.62,13.95771864]
[1748827763739,18.64964886,158.64,158.62,20.26176473]
[1748827765139,188.3,158.65,158.63,13.95771864]
[1748827766626,188.3,158.65,158.62,6.30404609]
[1748827766828,188.3,158.65,158.62,20.26176473]
[1748827768341,18.64964886,158.64,158.62,20.26176473]
[1748827768637,18.64964886,158.64,158.62,13.95771864]
[1748827770137,18.64964886,158.64,158.58,26.0]
[1748827770345,18.64964886,158.64,158.6,13.95771864]
[1748827770517,32.6073675,158.64,158.6,13.95771864]
[1748827770720,18.64964886,158.62,158.58,20.26362109]
[1748827770936,188.16,158.61,158.58,20.26362109]
[1748827771239,188.16,158.61,158.6,13.95771864]
[1748827773342,188.16,158.61,158.6,20.26288887]
[1748827776543,188.1,158.61,158.6,20.26288887]
[1748827782462,148.9,158.61,158.6,20.26288887]
[1748827788232,39.1,158.62,158.6,20.26288887]
[1748827790153,39.1,158.62,158.6,6.30517023]
[1748827793056,39.1,158.62,158.6,15.25591002]
[1748827793336,39.1,158.62,158.6,20.28974724]
[1748827799672,39.1,158.62,158.6,13.98457701]
[1748827799882,18.64964886,158.61,158.55,6.30715862]
[1748827800169,18.64964886,158.61,158.58,13.98457701]
[1748827800355,18.64964886,158.61,158.59,13.98457701]
[1748827800769,39.1,158.62,158.59,13.98457701]
[1748827801070,160.79,158.65,158.61,13.98457701]
[1748827801271,32.30173127,158.69,158.64,27.96915402]
[1748827801272,11.8841,158.69,158.64,27.96915402]
[1748827801456,49.32,158.69,158.67,13.98457701]
[1748827801657,49.32,158.69,158.64,6.30358043]
[1748827801963,49.32,158.69,158.67,13.98457701]
[1748827802648,49.32,158.69,158.68,13.98457701]
[1748827802649,10.24,158.69,158.68,13.98457701]
[1748827802869,49.32,158.69,158.67,13.98457701]
[1748827803176,10.24,158.69,158.68,13.98457701]
[1748827803543,10.24,158.69,158.68,20.28656843]
[1748827803871,10.24,158.69,158.68,6.30199142]
[1748827804173,10.24,158.69,158.68,20.28656843]
[1748827804342,10.24,158.69,158.68,13.98457701]
[1748827805943,10.24,158.69,158.66,13.98457701]
[1748827806165,10.24,158.69,158.65,13.98457701]
[1748827806554,10.24,158.69,158.66,13.98457701]
[1748827807659,30.52630041,158.69,158.65,13.98457701]
[1748827807854,24.22457701,158.69,158.65,13.98457701]
[1748827808170,10.24,158.69,158.65,13.98457701]
[1748827808957,159.14,158.69,158.65,20.28769875]
[1748827809666,159.14,158.69,158.66,13.98457701]
[1748827811375,167.54964886,158.68,158.65,13.98457701]
[1748827811575,39.04,158.67,158.64,13.98457701]
[1748827812388,59.32699064,158.67,158.6,26.0]
[1748827812550,59.32699064,158.67,158.62,13.98457701]
[1748827813157,59.32699064,158.67,158.63,13.98457701]
[1748827813558,32.63422587,158.66,158.62,13.98457701]
[1748827813874,32.63422587,158.66,158.61,13.98457701]
[1748827814378,13.98457701,158.65,158.61,13.98457701]
[1748827814559,13.98457701,158.64,158.59,20.29008985]
[1748827814875,49.24,158.63,158.59,20.29008985]
[1748827816076,49.24,158.63,158.6,13.98457701]
[1748827817861,49.24,158.63,158.6,20.28964416]
[1748827819650,49.24,158.63,158.6,13.98457701]
[1748827819874,49.24,158.63,158.59,20.29007422]
[1748827820157,38.94,158.62,158.6,13.98457701]
[1748827822089,18.64964886,158.61,158.54,7.58348014]
[1748827822254,32.63422587,158.61,158.56,13.98457701]
[1748827822880,162.88457701,158.6,158.54,6.30755645]
[1748827823056,52.92457701,158.59,158.54,6.30755645]
[1748827823471,52.92457701,158.59,158.54,20.29213346]
[1748827823669,52.92457701,158.59,158.54,46.29213346]
[1748827825357,13.98457701,158.58,158.54,20.29213346]
[1748827825681,162.88457701,158.58,158.54,20.29213346]
[1748827825864,10.24,158.57,158.54,20.29213346]
[1748827826194,38.94,158.56,158.54,20.29213346]
[1748827827375,38.94,158.56,158.54,6.30755645]
[1748827829778,38.94,158.56,158.54,20.29213346]
[1748827834065,38.94,158.56,158.54,13.98457701]
[1748827834270,52.92457701,158.56,158.51,13.98457701]
[1748827834471,181.53422587,158.55,158.5,13.98457701]
[1748827834877,183.05102587,158.55,158.49,22.08252969]
[1748827835078,183.05102587,158.55,158.5,13.98457701]
[1748827835981,183.05102587,158.55,158.5,20.29347238]
[1748827837069,18.64964886,158.53,158.49,6.30954634]
[1748827837294,38.86,158.52,158.49,20.29412335]
[1748827837502,38.86,158.52,158.49,6.30954634]
[1748827837798,52.84457701,158.52,158.49,6.30954634]
[1748827838295,10.2,158.51,158.49,20.29412335]
[1748827839175,10.2,158.51,158.47,6.31034265]
[1748827839389,10.2,158.51,158.48,13.98457701]
[1748827839982,24.18457701,158.51,158.47,20.29491966]
[1748827840184,24.18457701,158.51,158.47,6.31034265]
[1748827840485,18.64964886,158.5,158.43,30.64015583]
[1748827840695,13.98457701,158.48,158.44,6.31153749]
[1748827840882,13.98457701,158.47,158.43,14.64516316]
[1748827841068,13.98457701,158.45,158.43,8.33333333]
[1748827841271,187.86,158.44,158.43,8.33333333]
[1748827841494,187.86,158.44,158.43,14.6452692]
[1748827843279,220.49422587,158.44,158.43,8.33333333]
[1748827844603,57.60964886,158.44,158.43,8.33333333]
[1748827844791,73.12902587,158.44,158.43,8.33333333]
[1748827845098,79.44056336,158.44,158.43,8.33333333]
[1748827845998,71.10723003,158.44,158.43,8.33333333]
[1748827846196,64.79569254,158.44,158.43,8.33333333]
[1748827847297,71.10723003,158.44,158.43,8.33333333]
[1748827848704,83.28902587,158.44,158.43,8.33333333]
[1748827849601,30.38444886,158.44,158.43,8.33333333]
[1748827849783,69.30444886,158.44,158.43,8.33333333]
[1748827849985,83.28902587,158.44,158.43,8.33333333]
[1748827851000,83.32902587,158.44,158.43,8.33333333]
[1748827852989,18.64964886,158.43,158.39,6.3133936]
[1748827853326,18.64964886,158.41,158.39,6.3133936]
[1748827853896,18.64964886,158.41,158.37,13.98457701]
[1748827853897,18.64964886,158.41,158.38,6.31380996]
[1748827854195,38.94,158.4,158.36,13.98457701]
[1748827854594,38.94,158.4,158.37,13.98457701]
[1748827855301,38.94,158.4,158.36,13.98457701]
[1748827855505,32.63422587,158.39,158.35,13.98457701]
[1748827855707,148.9,158.38,158.35,13.98457701]
[1748827856089,162.88457701,158.38,158.34,20.30010056]
[1748827856300,167.54964886,158.37,158.34,20.30010056]
[1748827856605,18.64964886,158.35,158.31,0.07753023]
[1748827856806,32.63422587,158.35,158.31,0.07753023]
[1748827857185,32.63422587,158.35,158.32,6.31632137]
[1748827858204,18.64964886,158.35,158.31,0.07753023]
[1748827858401,32.63422587,158.35,158.31,14.06210724]
[1748827858584,32.63422587,158.35,158.31,0.07753023]
[1748827859087,13.98457701,158.34,158.31,0.07753023]
[1748827859402,32.63422587,158.33,158.31,0.07753023]
[1748827859907,49.22,158.32,158.29,6.31751847]
[1748827860091,18.64964886,158.31,158.28,6.31791761]
[1748827860481,32.63422587,158.31,158.28,6.31791761]
[1748827861609,18.64964886,158.31,158.28,6.31791761]
[1748827861783,32.63422587,158.31,158.28,6.31791761]
[1748827861983,49.22,158.32,158.29,13.98457701]
[1748827862227,49.2,158.32,158.31,6.31672035]
[1748827863291,10.2,158.32,158.31,20.30129736]
[1748827864506,159.1,158.36,158.31,36.09309825]
[1748827864700,159.1,158.36,158.35,13.98457701]
[1748827865284,148.9,158.36,158.35,13.98457701]
[1748827866305,148.9,158.36,158.35,20.29970173]
[1748827867302,148.9,158.36,158.35,6.31512472]
[1748827868294,201.94457701,158.36,158.32,6.31632137]
[1748827868486,32.63422587,158.35,158.32,6.31632137]
[1748827868910,18.64964886,158.35,158.32,6.31632137]
[1748827869886,148.9,158.36,158.33,13.98457701]
[1748827870185,148.9,158.36,158.34,13.98457701]
[1748827870399,148.9,158.36,158.33,13.98457701]
[1748827871590,148.9,158.36,158.32,15.79080343]
[1748827871908,148.9,158.36,158.34,13.98457701]
[1748827872488,148.9,158.36,158.35,6.31512472]
[1748827876029,181.53422587,158.36,158.35,6.31512472]
[1748827876229,148.9,158.36,158.35,6.31512472]
[1748827876519,148.9,158.36,158.34,6.31540726]
[1748827876896,148.9,158.36,158.33,6.31592244]
[1748827877210,162.88457701,158.36,158.33,6.31592244]
[1748827877712,18.64964886,158.33,158.3,6.31711939]
[1748827877942,13.98457701,158.32,158.3,6.31711939]
[1748827878308,71.65422587,158.33,158.3,6.31711939]
[1748827878506,13.98457701,158.32,158.3,6.31711939]
[1748827878920,24.18457701,158.32,158.28,6.31791761]
[1748827879124,13.98457701,158.3,158.28,6.31791761]
[1748827879332,53.08457701,158.3,158.28,6.31791761]
[1748827880404,53.08457701,158.3,158.27,6.3183168]
[1748827882732,39.1,158.3,158.26,36.0993602]
[1748827882913,39.1,158.3,158.26,22.11478319]
[1748827883114,39.1,158.3,158.26,36.0993602]
[1748827883752,39.08,158.29,158.26,36.0993602]
[1748827883911,39.08,158.29,158.27,13.98457701]
[1748827884323,39.08,158.29,158.26,22.11478319]
[1748827884540,39.08,158.29,158.26,36.0993602]
[1748827885156,13.98457701,158.31,158.26,36.0993602]
[1748827885336,39.1,158.29,158.26,36.0993602]
[1748827885753,39.1,158.29,158.27,13.98457701]
[1748827885956,13.98457701,158.32,158.27,13.98457701]
[1748827886252,10.2,158.31,158.26,79.70836337]
[1748827886430,18.64964886,158.34,158.26,79.70836337]
[1748827886624,57.74964886,158.34,158.26,79.70836337]
[1748827886831,18.64964886,158.34,158.26,79.70836337]
[1748827887132,159.1,158.35,158.26,79.70836337]
[1748827887334,198.2,158.35,158.29,26.0]
[1748827887652,159.1,158.35,158.33,13.98457701]
[1748827887946,159.1,158.35,158.34,6.31552355]
[1748827888246,148.9,158.35,158.34,6.31552355]
[1748827889327,148.9,158.35,158.34,20.30010056]
[1748827890246,148.9,158.35,158.34,6.31552355]
[1748827891929,148.9,158.35,158.34,20.30010056]
[1748827892330,148.9,158.35,158.34,6.31552355]
[1748827892752,148.9,158.35,158.34,20.30010056]
[1748827896748,162.88457701,158.35,158.3,13.98457701]
[1748827896945,39.08,158.34,158.3,13.98457701]
[1748827897150,39.08,158.34,158.3,20.3016964]
[1748827897347,53.06457701,158.34,158.3,20.3016964]
[1748827897956,39.08,158.34,158.31,13.98457701]
[1748827898346,39.08,158.34,158.3,22.10991787]
[1748827898647,39.08,158.34,158.3,36.09449488]
[1748827899034,39.08,158.34,158.3,6.31711939]
[1748827899231,13.98457701,158.33,158.3,6.31711939]
[1748827899449,53.06457701,158.34,158.3,6.31711939]
[1748827899656,53.06457701,158.34,158.3,20.3016964]
[1748827900369,39.08,158.34,158.3,36.09449488]
[1748827901038,39.08,158.34,158.33,13.98457701]
[1748827901463,148.9,158.35,158.33,13.98457701]
[1748827901662,148.9,158.35,158.34,13.98457701]
[1748827902247,148.9,158.35,158.32,36.09170181]
[1748827903368,162.88457701,158.35,158.32,6.31632137]
[1748827903569,148.9,158.35,158.32,6.31632137]
[1748827903747,148.9,158.35,158.32,20.30089838]
[1748827904853,148.9,158.35,158.32,6.31632137]
[1748827905042,39.1,158.34,158.32,6.31632137]
[1748827905377,39.1,158.34,158.31,22.10843989]
[1748827905668,53.08457701,158.34,158.31,22.10843989]
[1748827906244,39.1,158.34,158.32,13.98457701]
[1748827908273,39.1,158.34,158.33,6.31592244]
[1748827908975,148.9,158.35,158.33,20.30049945]
[1748827909852,148.9,158.35,158.34,13.98457701]
[1748827910560,39.08,158.37,158.34,36.08890945]
[1748827910758,39.08,158.37,158.35,13.98457701]
[1748827911378,10.28,158.38,158.36,13.98457701]
[1748827911551,10.28,158.38,158.37,13.98457701]
[1748827911974,148.9,158.4,158.37,13.98457701]
[1748827912161,187.98,158.4,158.37,13.98457701]
[1748827912560,148.9,158.4,158.38,6.31392852]
[1748827912882,201.94457701,158.4,158.38,6.31392852]
[1748827913065,162.88457701,158.4,158.38,6.31392852]
[1748827913260,39.06,158.39,158.38,6.31392852]
[1748827913859,53.04457701,158.39,158.36,6.31472594]
[1748827914059,13.98457701,158.38,158.36,6.31472594]
[1748827914558,13.98457701,158.38,158.34,6.31552355]
[1748827914874,53.04457701,158.39,158.34,20.30010056]
[1748827915353,13.98457701,158.38,158.34,20.30010056]
[1748827918457,13.98457701,158.38,158.33,36.090104]
[1748827920082,18.64964886,158.38,158.35,6.31512472]
[1748827920260,13.98457701,158.38,158.35,6.31512472]
[1748827922281,53.00457701,158.38,158.35,6.31512472]
[1748827922990,39.02,158.38,158.35,36.08751353]
[1748827923497,39.02,158.38,158.36,13.98457701]
[1748827923792,10.24,158.39,158.37,13.98457701]
[1748827924486,10.24,158.39,158.38,6.31392852]
[1748827926776,10.24,158.39,158.36,6.31472594]
[1748827930075,10.24,158.39,158.36,36.0861178]
[1748827930774,10.24,158.39,158.37,13.98457701]
[1748827931382,10.24,158.39,158.38,6.31392852]
[1748827933720,10.24,158.39,158.37,6.3143272]
[1748827933884,13.98457701,158.38,158.37,6.3143272]
[1748827934188,52.94457701,158.38,158.37,6.3143272]
[1748827934589,38.96,158.38,158.37,6.3143272]
[1748827934995,38.96,158.38,158.37,20.29890421]
[1748827935398,10.24,158.39,158.37,6.3143272]
[1748827936497,24.22457701,158.39,158.37,6.3143272]
[1748827936703,13.98457701,158.38,158.34,6.31552355]
[1748827937183,24.22457701,158.39,158.34,20.30010056]